bitfinex/quotes_SOLUSD_20220210
["timestamp","ask_amount","ask_price","bid_price","bid_amount"]
[1644514503387,46.6322,112.38,112.26,76.99497654]
[1644514503585,7.0,112.39,112.27,1.6677727]
[1644514503785,7.0,112.39,112.29,40.68448812]
[1644514503986,52.03096401,112.41,112.3,10.72]
[1644514504189,52.03096401,112.41,112.31,41.87253405]
[1644514504190,13.3574,112.38,112.31,41.87253405]
[1644514504386,9.23122154,112.39,112.31,41.87253405]
[1644514504586,2.054,112.38,112.31,41.87253405]
[1644514504889,2.23122154,112.39,112.31,41.87253405]
[1644514505487,13.3584,112.37,112.31,41.87253405]
[1644514505685,58.85174247,112.41,112.31,41.87253405]
[1644514505884,2.051,112.4,112.31,41.87253405]
[1644514506087,56.3151,112.41,112.31,41.87253405]
[1644514506487,13.3574,112.38,112.29,10.72]
[1644514506689,2.058,112.37,112.27,10.72]
[1644514506889,2.23122154,112.37,112.25,70.7308]
[1644514507086,2.065,112.36,112.25,70.7308]
[1644514507284,2.23122154,112.37,112.25,70.7308]
[1644514507488,2.23122154,112.37,112.26,45.26828802]
[1644514508791,13.3619,112.34,112.26,45.26828802]
[1644514509191,2.23122154,112.34,112.26,45.26828802]
[1644514509591,2.06,112.33,112.26,45.26828802]
[1644514509791,2.23122154,112.34,112.26,45.26828802]
[1644514509990,2.23122154,112.32,112.26,45.26828802]
[1644514510191,2.23122154,112.35,112.26,45.26828802]
[1644514510492,13.3653,112.31,112.26,45.26828802]
[1644514511894,23.9808,112.35,112.26,45.26828802]
[1644514512893,13.3614,112.34,112.26,45.26828802]
[1644514513494,23.9808,112.35,112.26,45.26828802]
[1644514513693,2.23122154,112.34,112.26,45.26828802]
[1644514514292,68.5249,112.35,112.26,45.26828802]
[1644514514597,23.9808,112.35,112.26,45.26828802]
[1644514514796,23.9808,112.35,112.26,49.72028802]
[1644514515000,9.088,112.37,112.26,49.72028802]
[1644514515196,7.0,112.37,112.27,1.66353891]
[1644514515395,7.0,112.37,112.28,61.20675622]
[1644514515694,4.53064247,112.43,112.3,45.82266197]
[1644514515995,49.76624247,112.44,112.32,46.8272819]
[1644514516194,47.2276,112.44,112.32,46.8272819]
[1644514517299,1.928,112.43,112.32,46.8272819]
[1644514517695,13.3529,112.41,112.32,60.1788819]
[1644514519098,1.928,112.43,112.32,46.8272819]
[1644514519499,15.18664247,112.43,112.28,10.72]
[1644514519700,126.61221298,112.42,112.23,4.45]
[1644514519905,12.777,112.41,112.23,10.72]
[1644514520100,13.3612,112.34,112.24,4.45]
[1644514520402,44.5381,112.37,112.24,19.47443891]
[1644514520604,44.5381,112.37,112.25,39.11030277]
[1644514521000,10.72,112.38,112.25,39.11030277]
[1644514521203,13.3605,112.35,112.25,39.11030277]
[1644514521503,44.5299,112.39,112.27,34.59596379]
[1644514521702,44.5299,112.39,112.29,44.44375757]
[1644514522303,44.5299,112.39,112.28,4.45]
[1644514522304,44.5377,112.37,112.28,4.45]
[1644514522802,2.055,112.36,112.28,4.45]
[1644514523003,46.76892154,112.37,112.28,4.45]
[1644514523304,13.3621,112.33,112.28,4.45]
[1644514523501,44.5455,112.35,112.28,4.45]
[1644514524103,2.049,112.34,112.28,4.45]
[1644514524402,13.3637,112.32,112.24,44.16711883]
[1644514524604,10.72,112.33,112.24,44.16711883]
[1644514524804,2.23122154,112.31,112.2,22.5693]
[1644514525207,2.554,112.3,112.2,22.5693]
[1644514525404,13.3706,112.26,112.17,46.8891]
[1644514525604,44.5698,112.28,112.17,60.2601]
[1644514525804,44.5698,112.28,112.18,39.44983701]
[1644514526928,44.5698,112.28,112.18,52.81933701]
[1644514527731,13.3702,112.26,112.18,52.81933701]
[1644514528329,55.2825,112.3,112.18,52.81933701]
[1644514528530,55.2825,112.3,112.2,34.35044056]
[1644514528930,13.3689,112.27,112.2,34.35044056]
[1644514529332,44.5625,112.3,112.2,36.28043893]
[1644514529530,44.5625,112.3,112.2,40.73443893]
[1644514530030,44.5625,112.3,112.2,40.48443893]
[1644514530337,44.5625,112.3,112.2,40.73443893]
[1644514530733,13.3675,112.29,112.2,40.73443893]
[1644514531332,13.3675,112.29,112.2,51.45443893]
[1644514532432,13.3675,112.29,112.2,51.20443893]
[1644514532631,13.3675,112.29,112.2,49.52444056]
[1644514533033,13.3674,112.28,112.2,52.52444056]
[1644514533234,13.3674,112.28,112.2,42.05444056]
[1644514533834,2.557,112.3,112.2,41.80444056]
[1644514534035,13.3698,112.26,112.2,41.80444056]
[1644514534241,2.53864247,112.3,112.2,41.80444056]
[1644514534435,2.59,112.29,112.2,41.80444056]
[1644514534741,2.588,112.3,112.2,37.35044056]
[1644514534935,36.85264247,112.31,112.2,37.35044056]
[1644514535135,2.587,112.3,112.2,37.35044056]
[1644514535340,13.3687,112.27,112.2,50.71784056]
[1644514535537,44.5644,112.3,112.2,50.71784056]
[1644514535740,23.594,112.31,112.2,50.96784056]
[1644514535937,23.594,112.31,112.22,35.6351091]
[1644514536338,13.3673,112.29,112.22,35.6351091]
[1644514536939,26.179,112.31,112.22,35.6351091]
[1644514537340,30.94886401,112.31,112.22,35.6351091]
[1644514537738,13.3697,112.26,112.22,35.6351091]
[1644514538940,13.3684,112.28,112.22,35.6351091]
[1644514539940,13.366,112.3,112.22,35.6351091]
[1644514543044,2.44,112.29,112.2,3.0]
[1644514543242,10.72,112.29,112.2,3.0]
[1644514543451,2.23122154,112.28,112.2,3.0]
[1644514543645,10.72,112.27,112.2,3.0]
[1644514543947,9.8367742,112.26,112.2,3.0]
[1644514544144,10.72,112.25,112.2,3.0]
[1644514544346,2.584,112.24,112.2,3.0]
[1644514544546,13.3755,112.21,112.2,3.0]
[1644514546547,13.3755,112.21,112.2,6.03219996]
[1644514546748,13.3741,112.22,112.2,6.03219996]
[1644514547146,13.3741,112.22,112.2,3.0]
[1644514547852,13.3741,112.22,112.21,36.35979]
[1644514548251,13.3729,112.23,112.21,36.35979]
[1644514548449,13.3729,112.23,112.21,39.39198996]
[1644514548651,44.5762,112.26,112.21,39.39198996]
[1644514549649,13.3717,112.24,112.21,39.39198996]
[1644514552553,13.3705,112.25,112.21,39.39198996]
[1644514553357,44.5683,112.28,112.21,39.39198996]
[1644514553556,13.3675,112.28,112.21,39.39198996]
[1644514553755,13.3675,112.28,112.21,48.79198996]
[1644514553953,24.996,112.3,112.21,48.79198996]
[1644514554554,13.3656,112.29,112.21,62.15798996]
[1644514555154,24.996,112.3,112.21,48.79198996]
[1644514555355,24.996,112.3,112.21,39.39198996]
[1644514556056,27.53464247,112.3,112.21,39.39198996]
[1644514556257,24.996,112.3,112.21,43.84598996]
[1644514556457,13.3669,112.28,112.21,57.21218996]
[1644514556658,2.53864247,112.31,112.21,57.21218996]
[1644514556960,48.97364247,112.32,112.21,68.18218996]
[1644514557157,48.97364247,112.32,112.21,63.72818996]
[1644514557361,13.3643,112.3,112.23,47.2039923]
[1644514560083,48.97364247,112.32,112.23,47.2039923]
[1644514560283,2.53864247,112.31,112.23,47.2039923]
[1644514560485,4.76986401,112.3,112.23,47.2039923]
[1644514560988,13.3691,112.26,112.23,47.2039923]
[1644514561283,4.76986401,112.3,112.25,38.89361177]
[1644514561284,2.53864247,112.3,112.25,38.89361177]
[1644514561486,26.21964247,112.31,112.25,38.89361177]
[1644514561684,23.681,112.31,112.25,38.89361177]
[1644514562086,13.3653,112.29,112.25,38.89361177]
[1644514563497,2.53864247,112.31,112.25,38.89361177]
[1644514563688,2.53864247,112.33,112.25,38.89361177]
[1644514564386,2.54257894,112.34,112.25,39.14361177]
[1644514564387,5.08122141,112.34,112.25,39.14361177]
[1644514564587,25.78924247,112.35,112.25,39.14361177]
[1644514564789,13.3594,112.34,112.26,4.452]
[1644514564988,13.3594,112.34,112.25,52.50501177]
[1644514566192,13.3594,112.34,112.27,43.79722302]
[1644514569493,2.556,112.34,112.27,43.79722302]
[1644514570493,13.3629,112.31,112.27,43.79722302]
[1644514571294,49.31326401,112.34,112.24,22.8532]
[1644514571494,4.76986401,112.34,112.24,22.8532]
[1644514571693,13.3639,112.3,112.24,22.8532]
[1644514571896,13.3639,112.3,112.23,17.8153]
[1644514572294,13.3639,112.3,112.24,34.87606457]
[1644514575599,13.3627,112.31,112.24,34.87606457]
[1644514575799,13.3627,112.31,112.24,48.23846457]
[1644514575999,2.23122154,112.34,112.25,4.453]
[1644514576202,2.23122154,112.34,112.26,44.74285544]
[1644514576400,70.32814247,112.35,112.26,44.74285544]
[1644514577399,13.3622,112.32,112.26,44.74285544]
[1644514577799,5.09464247,112.34,112.26,44.74285544]
[1644514577999,49.63824247,112.34,112.26,44.74285544]
[1644514578808,51.86946401,112.34,112.26,44.74285544]
[1644514579001,49.31346401,112.34,112.26,44.74285544]
[1644514579400,46.77482154,112.34,112.26,44.74285544]
[1644514579603,49.31346401,112.34,112.26,44.74285544]
[1644514579803,25.78924247,112.35,112.26,44.74285544]
[1644514580002,23.2506,112.35,112.26,44.74285544]
[1644514580200,23.2506,112.35,112.28,43.46532751]
[1644514580401,70.95084247,112.36,112.28,43.46532751]
[1644514580803,13.3612,112.32,112.28,43.46532751]
[1644514582805,2.53864247,112.33,112.23,35.4139]
[1644514583005,4.76986401,112.32,112.23,22.5739]
[1644514583205,4.76986401,112.32,112.22,4.453]
[1644514583406,2.54610195,112.31,112.21,4.453]
[1644514583605,4.76986401,112.32,112.21,4.453]
[1644514583809,2.53864247,112.31,112.22,42.09171221]
[1644514584013,4.76986401,112.32,112.22,42.09171221]
[1644514584208,5.08515467,112.31,112.22,42.09171221]
[1644514584407,44.5583,112.3,112.22,42.09171221]
[1644514585609,13.3672,112.27,112.22,42.09171221]
[1644514586508,44.5583,112.3,112.22,42.09171221]
[1644514586712,13.366,112.28,112.22,42.09171221]
[1644514587108,2.53864247,112.31,112.22,42.09171221]
[1644514587511,5.08616639,112.31,112.22,42.09171221]
[1644514587707,24.1639,112.35,112.23,17.293]
[1644514587708,15.89964247,112.33,112.23,17.293]
[1644514587908,15.89964247,112.33,112.24,36.66809086]
[1644514587909,13.361,112.33,112.24,36.66809086]
[1644514588109,13.361,112.33,112.25,4.452]
[1644514588309,13.361,112.33,112.26,46.63747427]
[1644514588910,13.3614,112.32,112.26,59.99657427]
[1644514589113,5.09764247,112.34,112.26,46.63747427]
[1644514589317,2.23122154,112.32,112.26,46.63747427]
[1644514589514,2.561,112.31,112.26,46.63747427]
[1644514589714,2.561,112.31,112.21,4.452]
[1644514589913,4.79222154,112.31,112.2,78.2353]
[1644514590114,13.3667,112.28,112.2,73.7823]
[1644514590316,13.3667,112.28,112.21,4.454]
[1644514590514,44.5575,112.3,112.21,4.454]
[1644514590714,2.23122154,112.27,112.21,37.24133289]
[1644514591114,2.557,112.26,112.21,37.24133289]
[1644514591314,13.3714,112.24,112.21,37.24133289]
[1644514591520,13.3714,112.24,112.23,34.90216385]
[1644514591916,13.3714,112.24,112.17,4.454]
[1644514592115,2.23122154,112.24,112.14,12.84]
[1644514592315,13.3755,112.2,112.13,60.3075]
[1644514592815,47.1387,112.23,112.13,60.3075]
[1644514593014,44.5857,112.23,112.14,49.8816283]
[1644514593217,20.5019,112.25,112.14,49.8816283]
[1644514594741,13.3735,112.22,112.14,63.2554283]
[1644514595242,13.3735,112.22,112.14,63.5054283]
[1644514595442,65.0811,112.25,112.14,63.5054283]
[1644514595641,65.0811,112.25,112.14,76.3454283]
[1644514596042,65.0811,112.25,112.14,75.8454283]
[1644514596541,65.0811,112.25,112.14,75.5954283]
[1644514596741,13.3722,112.23,112.14,75.8454283]
[1644514596943,13.3722,112.23,112.14,71.3884283]
[1644514597146,13.3722,112.23,112.14,84.9396283]
[1644514597842,13.3722,112.23,112.15,4.456]
[1644514598043,13.371,112.24,112.16,36.52979026]
[1644514598242,44.5713,112.27,112.16,36.52979026]
[1644514598444,44.5713,112.27,112.17,17.295]
[1644514598645,44.5713,112.27,112.18,47.12584802]
[1644514599747,13.3699,112.25,112.18,60.49624802]
[1644514603946,13.3711,112.24,112.18,60.49624802]
[1644514604146,13.3711,112.24,112.18,47.12584802]
[1644514604948,2.545,112.26,112.18,47.12584802]
[1644514605546,13.3722,112.23,112.18,47.12584802]
[1644514606548,13.371,112.24,112.18,47.12584802]
[1644514607351,13.371,112.24,112.18,60.49614802]
[1644514607551,24.4058,112.27,112.18,60.49614802]
[1644514608754,13.37,112.25,112.18,60.49614802]
[1644514610451,24.4058,112.27,112.18,60.49614802]
[1644514610652,2.556,112.26,112.18,47.12584802]
[1644514610855,2.23122154,112.25,112.18,47.12584802]
[1644514611052,2.533,112.24,112.18,47.12584802]
[1644514611454,4.76422154,112.24,112.18,47.12584802]
[1644514611654,2.23122154,112.24,112.18,47.12584802]
[1644514612252,13.3732,112.22,112.18,47.12584802]
[1644514613655,73.67152154,112.27,112.18,47.12584802]
[1644514613953,68.9763,112.27,112.18,57.83584802]
[1644514614154,71.3963,112.27,112.18,57.83584802]
[1644514614355,71.3963,112.27,112.18,47.12584802]
[1644514615455,13.372,112.23,112.18,47.12584802]
[1644514618059,13.3732,112.22,112.16,13.3732]
[1644514618258,13.3732,112.22,112.15,23.3991]
[1644514619058,13.3732,112.22,112.16,40.19477409]
[1644514619260,13.3732,112.22,112.16,53.56797409]
[1644514622561,1.27682982,112.23,112.16,53.56797409]
[1644514622759,1.27682982,112.23,112.16,40.19477409]
[1644514623762,13.3743,112.21,112.16,53.56847409]
[1644514624562,1.27682982,112.23,112.16,53.56847409]
[1644514625162,1.27682982,112.24,112.16,53.56847409]
[1644514625367,1.27682982,112.26,112.17,10.71]
[1644514625567,1.27682982,112.26,112.18,44.94195861]
[1644514625765,1.27682982,112.27,112.19,10.71]
[1644514625966,1.27682982,112.27,112.19,12.42848709]
[1644514626166,1.27682982,112.28,112.2,38.40659576]
[1644514626368,1.27682982,112.28,112.21,15.164]
[1644514626568,1.27682982,112.3,112.22,35.60113664]
[1644514626766,1.27682982,112.31,112.23,15.163]
[1644514626966,1.27682982,112.32,112.24,46.22269558]
[1644514627164,1.27682982,112.32,112.26,39.53207101]
[1644514627395,1.27682982,112.33,112.28,43.82559554]
[1644514627566,1.27682982,112.33,112.3,48.23726869]
[1644514627767,1.27682982,112.33,112.29,15.162]
[1644514627768,1.27682982,112.34,112.32,34.96451102]
[1644514628167,1.27682982,112.34,112.29,10.71]
[1644514628467,1.27682982,112.33,112.29,10.71]
[1644514628665,2.53864247,112.36,112.24,10.71]
[1644514628666,1.27682982,112.34,112.24,10.71]
[1644514628865,1.27682982,112.32,112.24,10.71]
[1644514629065,1.27682982,112.33,112.25,48.72016778]
[1644514629464,14.63952982,112.33,112.25,59.43016778]
[1644514629664,1.27682982,112.33,112.25,59.43016778]
[1644514630869,13.3641,112.31,112.25,59.43016778]
[1644514631771,14.63952982,112.33,112.25,72.79286778]
[1644514631970,1.27682982,112.33,112.25,72.79286778]
[1644514632372,1.27682982,112.33,112.25,59.43016778]
[1644514632872,13.3651,112.31,112.25,59.43016778]
[1644514633274,3.83282982,112.32,112.25,48.72016778]
[1644514633275,1.27682982,112.32,112.25,48.72016778]
[1644514633474,2.57,112.31,112.25,48.72016778]
[1644514633772,3.84682982,112.31,112.2,68.5302]
[1644514633972,1.27682982,112.31,112.2,34.691]
[1644514634174,2.585,112.3,112.2,34.691]
[1644514634372,4.81622154,112.3,112.17,6.16148988]
[1644514634571,4.81622154,112.3,112.18,10.71]
[1644514634572,28.12552154,112.3,112.18,10.71]
[1644514634773,2.23122154,112.29,112.17,40.55462126]
[1644514634996,13.375,112.22,112.17,40.55462126]
[1644514635197,3.86882982,112.28,112.17,40.55462126]
[1644514635398,1.27682982,112.28,112.17,40.55462126]
[1644514635800,44.5802,112.26,112.17,40.55462126]
[1644514635999,13.3723,112.24,112.17,40.55462126]
[1644514637801,13.3723,112.24,112.17,53.92652126]
[1644514640300,13.3723,112.24,112.17,64.63652126]
[1644514640701,13.3712,112.26,112.17,64.63652126]
[1644514641102,3.78982982,112.29,112.17,66.59401114]
[1644514641401,47.8784,112.3,112.17,66.59401114]
[1644514641402,1.27682982,112.3,112.17,66.59401114]
[1644514641602,1.27682982,112.31,112.18,95.42932731]
[1644514641803,1.27682982,112.32,112.19,56.94510411]
[1644514642003,1.27682982,112.32,112.2,27.9165]
[1644514642209,1.27682982,112.32,112.21,58.62399688]
[1644514643105,1.27682982,112.32,112.21,73.69658676]
[1644514643505,1.27682982,112.32,112.22,4.453]
[1644514643703,1.27682982,112.32,112.23,48.7692774]
[1644514644502,13.3641,112.32,112.23,62.1332774]
[1644514644704,14.64092982,112.32,112.23,62.1332774]
[1644514645003,13.3641,112.32,112.23,62.1332774]
[1644514645202,14.64092982,112.32,112.23,62.1332774]
[1644514645404,13.3641,112.32,112.23,62.1332774]
[1644514646106,14.64092982,112.32,112.23,62.1332774]
[1644514646304,1.27682982,112.32,112.23,48.7692774]
[1644514646603,1.27682982,112.31,112.23,48.7692774]
[1644514646805,2.555,112.3,112.23,38.0592774]
[1644514647004,1.27682982,112.31,112.23,38.0592774]
[1644514647303,3.82882982,112.3,112.23,38.0592774]
[1644514647504,1.27682982,112.3,112.23,38.0592774]
[1644514647704,13.3666,112.29,112.23,38.0592774]
[1644514649908,14.64202982,112.31,112.23,38.0592774]
[1644514650108,45.83342982,112.32,112.23,38.0592774]
[1644514651111,13.3655,112.3,112.23,51.4244774]
[1644514651511,1.27682982,112.32,112.23,51.4244774]
[1644514651714,1.27682982,112.32,112.24,4.453]
[1644514651913,1.27682982,112.32,112.25,36.43799965]
[1644514652112,1.27682982,112.32,112.25,40.88999965]
[1644514652312,62.49162982,112.33,112.25,40.88999965]
[1644514652512,62.49162982,112.33,112.25,51.59999965]
[1644514652712,62.49162982,112.33,112.25,47.14799965]
[1644514652912,49.12882982,112.33,112.25,47.14799965]
[1644514653115,49.12882982,112.33,112.27,42.86731164]
[1644514653116,1.27682982,112.33,112.27,42.86731164]
[1644514653414,1.27682982,112.35,112.29,41.67010943]
[1644514654213,13.3602,112.34,112.29,41.67010943]
[1644514654413,1.27682982,112.34,112.29,41.67010943]
[1644514655513,13.3615,112.33,112.29,41.67010943]
[1644514661722,14.63672982,112.34,112.29,41.67010943]
[1644514663318,13.3599,112.34,112.29,41.67010943]
[1644514664619,13.3611,112.33,112.29,41.67010943]
[1644514665721,13.3621,112.32,112.26,17.8121]
[1644514665920,13.3621,112.32,112.26,30.6521]
[1644514666121,1.27682982,112.34,112.26,4.45]
[1644514666320,1.27682982,112.33,112.26,4.45]
[1644514666520,2.23122154,112.32,112.26,4.45]
[1644514666924,4.78722154,112.32,112.25,46.65544148]
[1644514667122,6.06405136,112.32,112.25,46.65544148]
[1644514667324,1.27682982,112.32,112.25,46.65544148]
[1644514667724,13.3659,112.29,112.25,46.65544148]
[1644514668425,1.27682982,112.32,112.25,46.65544148]
[1644514668645,1.27682982,112.31,112.25,46.65544148]
[1644514669224,5.09364247,112.34,112.25,46.65544148]
[1644514669225,1.27682982,112.3,112.25,46.65544148]
[1644514669624,1.27682982,112.31,112.25,46.65544148]
[1644514669824,13.3667,112.28,112.25,46.65544148]
[1644514670024,13.3667,112.28,112.27,38.95029308]
[1644514670224,1.27682982,112.32,112.27,38.95029308]
[1644514670832,13.3643,112.3,112.27,38.95029308]
[1644514671227,13.3643,112.3,112.28,3.03219996]
[1644514671424,13.3643,112.3,112.29,47.43991733]
[1644514672029,13.3643,112.3,112.28,3.03219996]
[1644514672426,13.3643,112.3,112.24,40.9726]
[1644514672629,13.3643,112.3,112.24,54.3362]
[1644514673029,1.27682982,112.32,112.25,45.33048129]
[1644514673229,1.27682982,112.33,112.27,35.72560745]
[1644514673430,1.27682982,112.33,112.27,48.56560745]
[1644514673628,1.27682982,112.34,112.27,61.92650745]
[1644514673828,1.27682982,112.34,112.29,40.59437134]
[1644514674430,1.27682982,112.33,112.29,40.59437134]
[1644514674633,1.27682982,112.34,112.29,40.59437134]
[1644514675732,14.63632982,112.34,112.29,40.59437134]
[1644514676756,1.27682982,112.34,112.29,40.59437134]
[1644514677763,1.27682982,112.34,112.29,53.95317134]
[1644514678958,1.27682982,112.34,112.29,40.59437134]
[1644514679158,1.27682982,112.33,112.29,40.59437134]
[1644514680059,1.27682982,112.32,112.29,40.59437134]
[1644514680262,1.27682982,112.32,112.3,3.03219996]
[1644514680560,14.63852982,112.32,112.31,38.76307171]
[1644514680761,13.3617,112.32,112.31,38.76307171]
[1644514682665,13.3617,112.32,112.3,3.03219996]
[1644514682866,14.63832982,112.33,112.3,3.03219996]
[1644514683768,14.63832982,112.33,112.31,35.97329346]
[1644514683968,14.63832982,112.33,112.32,3.03219996]
[1644514684167,14.63832982,112.33,112.31,35.97329346]
[1644514685171,14.63832982,112.33,112.32,3.03219996]
[1644514685772,2.53864247,112.36,112.32,3.03219996]
[1644514685969,15.07122154,112.4,112.32,3.03219996]
[1644514685970,2.53864247,112.39,112.33,44.58000977]
[1644514686372,5.0861771,112.39,112.33,44.58000977]
[1644514686971,13.3576,112.37,112.33,44.58000977]
[1644514688178,13.3555,112.38,112.33,44.58000977]
[1644514688374,2.53864247,112.39,112.33,44.58000977]
[1644514688578,2.53864247,112.4,112.33,57.42000977]
[1644514688779,2.53864247,112.42,112.34,4.449]
[1644514688979,2.53864247,112.43,112.35,48.18835755]
[1644514689179,2.53864247,112.43,112.37,46.22792203]
[1644514689377,15.88964247,112.43,112.37,46.22792203]
[1644514689584,2.53864247,112.43,112.37,46.22792203]
[1644514689780,5.08328063,112.43,112.37,46.22792203]
[1644514690176,5.00164247,112.44,112.37,46.22792203]
[1644514690378,49.51094247,112.44,112.37,46.22792203]
[1644514690881,2.54165624,112.43,112.37,46.22792203]
[1644514691080,5.08029871,112.43,112.37,46.22792203]
[1644514691282,47.04794247,112.44,112.37,46.22792203]
[1644514691480,13.3523,112.41,112.37,46.22792203]
[1644514691778,2.53864247,112.44,112.37,46.22792203]
[1644514691981,5.07793432,112.45,112.37,46.22792203]
[1644514693181,47.03954247,112.46,112.37,46.22792203]
[1644514693581,13.35,112.43,112.37,46.22792203]
[1644514693783,51.80704247,112.47,112.37,46.22792203]
[1644514694082,49.2684,112.47,112.39,36.58542815]
[1644514694292,2.23122154,112.49,112.4,17.287]
[1644514694482,2.23122154,112.49,112.41,45.13780406]
[1644514694483,13.3454,112.47,112.41,45.13780406]
[1644514695681,13.344,112.48,112.41,58.48210406]
[1644514696685,13.344,112.48,112.42,12.84]
[1644514696885,13.344,112.48,112.43,48.78460209]
[1644514697090,15.57522154,112.48,112.43,48.78460209]
[1644514699486,13.344,112.48,112.43,48.78460209]
[1644514699886,13.344,112.48,112.38,27.7116]
[1644514699887,13.3494,112.44,112.39,12.84]
[1644514700086,46.72912154,112.47,112.38,23.2656]
[1644514700891,46.72912154,112.47,112.39,48.47797626]
[1644514701295,13.3486,112.44,112.39,48.47797626]
[1644514702299,73.84266401,112.49,112.39,61.31797626]
[1644514702514,13.3452,112.47,112.39,61.31797626]
[1644514703715,13.3452,112.47,112.39,74.66427626]
[1644514704918,13.3452,112.47,112.4,4.447]
[1644514705119,13.3452,112.47,112.41,56.99488602]
[1644514705318,26.81652154,112.49,112.41,56.99488602]
[1644514705718,2.23122154,112.47,112.41,44.15488602]
[1644514705919,46.72672154,112.47,112.41,44.15488602]
[1644514706319,13.3487,112.46,112.41,44.15488602]
[1644514706520,15.57992154,112.46,112.41,44.15488602]
[1644514706917,2.23122154,112.45,112.41,44.15488602]
[1644514707118,13.3487,112.46,112.41,44.15488602]
[1644514707318,13.3469,112.45,112.41,44.15488602]
[1644514710224,13.3455,112.46,112.41,44.15488602]
[1644514710827,44.485,112.49,112.41,61.44188602]
[1644514711021,2.53054355,112.51,112.41,57.24488602]
[1644514711224,2.52969719,112.53,112.43,160.51]
[1644514711423,2.52969719,112.53,112.44,212.64312034]
[1644514711623,0.00054355,112.57,112.45,173.35]
[1644514711822,2.52969719,112.57,112.47,42.94720123]
[1644514712025,2.52969719,112.57,112.49,48.29402514]
[1644514712223,0.00054355,112.57,112.49,65.57602514]
[1644514712427,2.52915364,112.58,112.49,78.91092514]
[1644514712625,12.48070559,112.62,112.49,78.91092514]
[1644514713024,12.48070559,112.62,112.49,74.46892514]
[1644514713225,12.48070559,112.62,112.49,12.84]
[1644514713427,0.45,112.6,112.49,12.84]
[1644514713623,0.45,112.6,112.47,12.84]
[1644514713827,0.25,112.57,112.47,12.84]
[1644514714024,0.25,112.57,112.47,17.282]
[1644514714227,0.25,112.57,112.48,40.33557888]
[1644514714625,13.3396,112.53,112.48,40.33557888]
[1644514715223,0.25,112.57,112.47,12.84]
[1644514715427,2.48122154,112.57,112.45,12.84]
[1644514715625,15.32122154,112.57,112.44,24.6023]
[1644514715828,13.3398,112.52,112.42,26.1826]
[1644514716025,13.3398,112.52,112.42,12.84]
[1644514716231,13.3398,112.52,112.42,41.96076134]
[1644514717026,13.3398,112.52,112.42,54.80076134]
[1644514717227,13.3398,112.52,112.42,41.96076134]
[1644514717426,13.3398,112.52,112.42,54.80076134]
[1644514717626,13.3398,112.52,112.42,41.96076134]
[1644514717827,13.3398,112.52,112.42,55.30336134]
[1644514718828,13.3398,112.52,112.42,68.14336134]
[1644514719332,13.3398,112.52,112.44,35.89734701]
[1644514719527,13.3398,112.52,112.46,35.34670643]
[1644514723331,13.3398,112.52,112.47,4.444]
[1644514723530,13.3398,112.52,112.48,42.21056911]
[1644514723731,44.4629,112.55,112.48,42.21056911]
[1644514723931,13.3375,112.53,112.48,42.21056911]
[1644514728137,13.3385,112.52,112.47,4.444]
[1644514729139,13.3385,112.52,112.47,39.2778592]
[1644514729743,13.3385,112.52,112.43,49.5405]
[1644514730042,13.3385,112.52,112.44,4.445]
[1644514730241,13.3385,112.52,112.43,23.3589]
[1644514730441,13.3385,112.52,112.44,4.445]
[1644514730640,13.3385,112.52,112.45,40.88468359]
[1644514732045,13.3385,112.52,112.45,53.72468359]
[1644514733345,13.3371,112.54,112.45,67.06388359]
[1644514733546,44.4615,112.55,112.45,67.06388359]
[1644514733746,44.4657,112.54,112.45,67.06388359]
[1644514733950,94.11378149,112.58,112.44,4.445]
[1644514733951,79.04255995,112.58,112.44,4.445]
[1644514734150,2.23122154,112.55,112.44,4.445]
[1644514734348,15.07122154,112.55,112.44,4.445]
[1644514734949,15.07122154,112.55,112.45,47.23073804]
[1644514735450,2.5317604,112.54,112.45,47.23073804]
[1644514735851,13.3385,112.52,112.45,47.23073804]
[1644514736272,2.23122154,112.51,112.45,47.23073804]
[1644514736870,2.23122154,112.53,112.45,47.23073804]
[1644514737472,13.3434,112.5,112.45,47.23073804]
[1644514737868,13.3434,112.5,112.43,4.445]
[1644514738070,13.3434,112.5,112.42,17.7873]
[1644514738871,13.3434,112.5,112.43,40.53671386]
[1644514741173,13.3434,112.5,112.44,4.445]